{"text_format":"3","workbook":"xlsx","n_sheets":1,"sheets":["דוח הוצאות"],"not_rendered":{"images":1,"defined_names":12},"read":"whole","date_system":"1900"}

{"sheet":"דוח הוצאות","index":0,"n_rows":24,"n_cols":13,"rows_kept":24,"merged":[[3,2,3,3],[3,5,3,6],[3,9,3,10],[4,2,4,3],[4,5,4,6],[4,9,4,10],[5,2,5,3],[5,5,5,6],[5,9,5,10],[6,2,6,3],[6,5,6,6],[6,9,6,10],[7,9,7,10]]}
[null,"דוח הוצאות"]
[null,"CONTOSO, LTD"]
[null,"רחוב הנשיאים 123, הוד השרון, 1234567"]
[null,"טלפון",4255550121,null,"שם","נויה שטיינברג",null,null,"מטרה","סמינר מכירות שנתי",null,"תעריף קילומטראז'",{"v":0.5,"d":" ₪ 0.50/ לק¨מ"}]
[null,"פקס",4255550122,null,"מחלקה","מכירות",null,null,"התחלה",{"$f":"IFERROR(MIN(הוצאות[תאריך]),\"\")","v":"2018-06-12"},null,"תעריף ארוחות",{"v":30,"d":" ₪ 30.00/ ליום "}]
[null,"דואר אלקטרוני","info@contoso.com",null,"תפקיד","דירקטור",null,null,"סיום",{"$f":"IFERROR(MAX(הוצאות[תאריך]),\"\")","v":"2018-07-12"},null,"תעריף מלון",{"v":200,"d":" ₪ 200.00/ ללילה"}]
[null,"אתר","www.contoso.com",null,"מנהל","מיכאל ישראלי",null,null,"הוכן על-ידי","נויה שטיינברג",null,"תעריף טלפון",{"v":10,"d":" ₪ 10.00/ ליום "}]
[{"$nulls":8},"אושר על-ידי","מיכאל ישראלי",null,"שונות תעריף",{"v":50,"d":" ₪ 50.00/ ליום "}]
[]
[null,"תאריך","חשבון","תיאור","מלון","תחבורה","ארוחות","טלפון","שונות","מד מרחק \nהתחלה","מד מרחק \nסיום","קילומטראז' \nסך הכל","סך הכל "]
[null,{"$f":"TODAY()","v":"2018-06-12"},"מכירות","קילומטראז'",{"$nulls":4},{"v":50,"d":"₪ 50.00"},{"v":11378.5,"d":"11,378.5  ק¨מ"},{"v":11456.2,"d":"11,456.2  ק¨מ"},{"$f":"IF(COUNTA(הוצאות[[#This Row],[מד מרחק \nהתחלה]:[מד מרחק \nסיום]])=2,(הוצאות[[#This Row],[מד מרחק \nסיום]]-הוצאות[[#This Row],[מד מרחק \nהתחלה]])*MileageRate,\"\")","v":{"v":38.850000000000364,"d":"₪ 38.85"}},{"$f":"IF(COUNTA(הוצאות[[#This Row],[תאריך]:[מד מרחק \nסיום]])=0,\"\",SUM(הוצאות[[#This Row],[מלון]:[תחבורה]],הוצאות[[#This Row],[ארוחות]:[שונות]],((הוצאות[[#This Row],[מד מרחק \nסיום]]-הוצאות[[#This Row],[מד מרחק \nהתחלה]])*(MileageRate))))","v":{"v":88.85000000000036,"d":"₪ 88.85"}}]
[null,{"$f":"TODAY()+30","v":"2018-07-12"},"מכירות","כנס",{"v":445,"d":"₪ 445.00"},{"v":225,"d":"₪ 225.00"},{"v":20,"d":"₪ 20.00"},null,{"v":5,"d":"₪ 5.00"},{"v":11500,"d":"11,500.0  ק¨מ"},{"v":11560,"d":"11,560.0  ק¨מ"},{"$f":"IF(COUNTA(הוצאות[[#This Row],[מד מרחק \nהתחלה]:[מד מרחק \nסיום]])=2,(הוצאות[[#This Row],[מד מרחק \nסיום]]-הוצאות[[#This Row],[מד מרחק \nהתחלה]])*MileageRate,\"\")","v":{"v":30,"d":"₪ 30.00"}},{"$f":"IF(COUNTA(הוצאות[[#This Row],[תאריך]:[מד מרחק \nסיום]])=0,\"\",SUM(הוצאות[[#This Row],[מלון]:[תחבורה]],הוצאות[[#This Row],[ארוחות]:[שונות]],((הוצאות[[#This Row],[מד מרחק \nסיום]]-הוצאות[[#This Row],[מד מרחק \nהתחלה]])*(MileageRate))))","v":{"v":725,"d":"₪ 725.00"}}]
[{"$nulls":11},{"$f":"IF(COUNTA(הוצאות[[#This Row],[מד מרחק \nהתחלה]:[מד מרחק \nסיום]])=2,(הוצאות[[#This Row],[מד מרחק \nסיום]]-הוצאות[[#This Row],[מד מרחק \nהתחלה]])*MileageRate,\"\")","v":""},{"$f":"IF(COUNTA(הוצאות[[#This Row],[תאריך]:[מד מרחק \nסיום]])=0,\"\",SUM(הוצאות[[#This Row],[מלון]:[תחבורה]],הוצאות[[#This Row],[ארוחות]:[שונות]],((הוצאות[[#This Row],[מד מרחק \nסיום]]-הוצאות[[#This Row],[מד מרחק \nהתחלה]])*(MileageRate))))","v":""}]
[{"$nulls":11},{"$f":"IF(COUNTA(הוצאות[[#This Row],[מד מרחק \nהתחלה]:[מד מרחק \nסיום]])=2,(הוצאות[[#This Row],[מד מרחק \nסיום]]-הוצאות[[#This Row],[מד מרחק \nהתחלה]])*MileageRate,\"\")","v":""},{"$f":"IF(COUNTA(הוצאות[[#This Row],[תאריך]:[מד מרחק \nסיום]])=0,\"\",SUM(הוצאות[[#This Row],[מלון]:[תחבורה]],הוצאות[[#This Row],[ארוחות]:[שונות]],((הוצאות[[#This Row],[מד מרחק \nסיום]]-הוצאות[[#This Row],[מד מרחק \nהתחלה]])*(MileageRate))))","v":""}]
[{"$nulls":11},{"$f":"IF(COUNTA(הוצאות[[#This Row],[מד מרחק \nהתחלה]:[מד מרחק \nסיום]])=2,(הוצאות[[#This Row],[מד מרחק \nסיום]]-הוצאות[[#This Row],[מד מרחק \nהתחלה]])*MileageRate,\"\")","v":""},{"$f":"IF(COUNTA(הוצאות[[#This Row],[תאריך]:[מד מרחק \nסיום]])=0,\"\",SUM(הוצאות[[#This Row],[מלון]:[תחבורה]],הוצאות[[#This Row],[ארוחות]:[שונות]],((הוצאות[[#This Row],[מד מרחק \nסיום]]-הוצאות[[#This Row],[מד מרחק \nהתחלה]])*(MileageRate))))","v":""}]
[{"$nulls":11},{"$f":"IF(COUNTA(הוצאות[[#This Row],[מד מרחק \nהתחלה]:[מד מרחק \nסיום]])=2,(הוצאות[[#This Row],[מד מרחק \nסיום]]-הוצאות[[#This Row],[מד מרחק \nהתחלה]])*MileageRate,\"\")","v":""},{"$f":"IF(COUNTA(הוצאות[[#This Row],[תאריך]:[מד מרחק \nסיום]])=0,\"\",SUM(הוצאות[[#This Row],[מלון]:[תחבורה]],הוצאות[[#This Row],[ארוחות]:[שונות]],((הוצאות[[#This Row],[מד מרחק \nסיום]]-הוצאות[[#This Row],[מד מרחק \nהתחלה]])*(MileageRate))))","v":""}]
[{"$nulls":11},{"$f":"IF(COUNTA(הוצאות[[#This Row],[מד מרחק \nהתחלה]:[מד מרחק \nסיום]])=2,(הוצאות[[#This Row],[מד מרחק \nסיום]]-הוצאות[[#This Row],[מד מרחק \nהתחלה]])*MileageRate,\"\")","v":""},{"$f":"IF(COUNTA(הוצאות[[#This Row],[תאריך]:[מד מרחק \nסיום]])=0,\"\",SUM(הוצאות[[#This Row],[מלון]:[תחבורה]],הוצאות[[#This Row],[ארוחות]:[שונות]],((הוצאות[[#This Row],[מד מרחק \nסיום]]-הוצאות[[#This Row],[מד מרחק \nהתחלה]])*(MileageRate))))","v":""}]
[{"$nulls":11},{"$f":"IF(COUNTA(הוצאות[[#This Row],[מד מרחק \nהתחלה]:[מד מרחק \nסיום]])=2,(הוצאות[[#This Row],[מד מרחק \nסיום]]-הוצאות[[#This Row],[מד מרחק \nהתחלה]])*MileageRate,\"\")","v":""},{"$f":"IF(COUNTA(הוצאות[[#This Row],[תאריך]:[מד מרחק \nסיום]])=0,\"\",SUM(הוצאות[[#This Row],[מלון]:[תחבורה]],הוצאות[[#This Row],[ארוחות]:[שונות]],((הוצאות[[#This Row],[מד מרחק \nסיום]]-הוצאות[[#This Row],[מד מרחק \nהתחלה]])*(MileageRate))))","v":""}]
[{"$nulls":11},{"$f":"IF(COUNTA(הוצאות[[#This Row],[מד מרחק \nהתחלה]:[מד מרחק \nסיום]])=2,(הוצאות[[#This Row],[מד מרחק \nסיום]]-הוצאות[[#This Row],[מד מרחק \nהתחלה]])*MileageRate,\"\")","v":""},{"$f":"IF(COUNTA(הוצאות[[#This Row],[תאריך]:[מד מרחק \nסיום]])=0,\"\",SUM(הוצאות[[#This Row],[מלון]:[תחבורה]],הוצאות[[#This Row],[ארוחות]:[שונות]],((הוצאות[[#This Row],[מד מרחק \nסיום]]-הוצאות[[#This Row],[מד מרחק \nהתחלה]])*(MileageRate))))","v":""}]
[{"$nulls":11},{"$f":"IF(COUNTA(הוצאות[[#This Row],[מד מרחק \nהתחלה]:[מד מרחק \nסיום]])=2,(הוצאות[[#This Row],[מד מרחק \nסיום]]-הוצאות[[#This Row],[מד מרחק \nהתחלה]])*MileageRate,\"\")","v":""},{"$f":"IF(COUNTA(הוצאות[[#This Row],[תאריך]:[מד מרחק \nסיום]])=0,\"\",SUM(הוצאות[[#This Row],[מלון]:[תחבורה]],הוצאות[[#This Row],[ארוחות]:[שונות]],((הוצאות[[#This Row],[מד מרחק \nסיום]]-הוצאות[[#This Row],[מד מרחק \nהתחלה]])*(MileageRate))))","v":""}]
[{"$nulls":11},{"$f":"IF(COUNTA(הוצאות[[#This Row],[מד מרחק \nהתחלה]:[מד מרחק \nסיום]])=2,(הוצאות[[#This Row],[מד מרחק \nסיום]]-הוצאות[[#This Row],[מד מרחק \nהתחלה]])*MileageRate,\"\")","v":""},{"$f":"IF(COUNTA(הוצאות[[#This Row],[תאריך]:[מד מרחק \nסיום]])=0,\"\",SUM(הוצאות[[#This Row],[מלון]:[תחבורה]],הוצאות[[#This Row],[ארוחות]:[שונות]],((הוצאות[[#This Row],[מד מרחק \nסיום]]-הוצאות[[#This Row],[מד מרחק \nהתחלה]])*(MileageRate))))","v":""}]
[null,"סכומים",null,null,{"$f":"SUBTOTAL(109,הוצאות[מלון])","v":{"v":445,"d":"₪ 445.00"}},{"$f":"SUBTOTAL(109,הוצאות[תחבורה])","v":{"v":225,"d":"₪ 225.00"}},{"$f":"SUBTOTAL(109,הוצאות[ארוחות])","v":{"v":20,"d":"₪ 20.00"}},{"$f":"SUBTOTAL(109,הוצאות[טלפון])","v":0},{"$f":"SUBTOTAL(109,הוצאות[שונות])","v":{"v":55,"d":"₪ 55.00"}},{"$nulls":3},{"$f":"SUBTOTAL(109,הוצאות[[סך הכל ]])","v":{"v":813.8500000000004,"d":"₪ 813.85"}}]
[{"$nulls":11},"מקדמות",{"v":0,"d":"₪ 0.00"}]
[{"$nulls":11},"סך הכל",{"$f":"הוצאות[[#Totals],[סך הכל ]]-מקדמות","v":{"v":813.8500000000004,"d":"₪ 813.85"}}]